Cogmind - Beta 15 *** ADVENTURER MODE // 2025.07.14 @ 18:48:26 Player: Nagash Result: Destroyed by G-34 Mercenary with Small Laser Performance ------------- Evolutions (1) 500 Regions Visited (2) 400 Robots Destroyed (2) 10 Value Destroyed (79) 79 Prototype IDs (0) 0 Alien Tech Used (0) 0 Bonus (200) 200 TOTAL SCORE: 1189 Bonus ------- Pacifist 200 Cogmind --------- Core Integrity 0/400 Matter 300/300 Energy 85/100 System Corruption 0% Temperature Cool (6) Movement Walking (1030) Ox13 Location -9/Materials Parts ------- > --- POWER (1) -------- (None) > --- PROPULSION (3) --- Aluminum Leg > --- UTILITY (3) ------ Cargo Storage Unit > --- WEAPON (2) ------- (None) > --- INVENTORY (30) --- Aluminum Leg Improved Heat Sink Improved Heat Sink Small Storage Unit Large Storage Unit Peak State ------------ > --- POWER ------------ Ion Engine > --- PROPULSION ------- Wheel Wheel > --- UTILITY ---------- Small Storage Unit Small Battery > --- WEAPON ----------- EM Pulse Gun Medium Laser > --- INVENTORY -------- Light Ion Engine Aluminum Leg Aluminum Leg Improved Heat Sink Improved Heat Sink Assault Rifle [Rating: 8] Favorites ----------- Power Ion Engine Engine Ion Engine Propulsion Wheel Leg Aluminum Leg Wheel Wheel Utility Cargo Storage Unit Storage Cargo Storage Unit Weapon Medium Laser Energy Gun Medium Laser Ballistic Gun Assault Rifle Build | -11 -10 -9 ------- Run | Yrd Mat Mat Slots Evolved 2 | . . 2 Power . | . . . Propulsion 1 | . . 1 Utility 1 | . . 1 Weapon . | . . . Parts Attached 12 | 6 3 3 Power 2 | 1 . 1 Engine 2 | 1 . 1 Core . | . . . Reactor . | . . . Propulsion 3 | 2 . 1 Treads . | . . . Leg 1 | . . 1 Wheel 2 | 2 . . Hover . | . . . Flight . | . . . Utility 4 | 1 3 . Device . | . . . Storage 4 | 1 3 . Processor . | . . . Hackware . | . . . Protection . | . . . Artifact . | . . . Weapon 3 | 2 . 1 Energy Gun 2 | 2 . . Energy Cannon . | . . . Ballistic Gun 1 | . . 1 Ballistic Cannon . | . . . Launcher . | . . . Special Weapon . | . . . Impact Weapon . | . . . Slashing Weapon . | . . . Piercing Weapon . | . . . Special Melee Weapon . | . . . Unidentified Prototypes . | . . . Parts Lost 7 | . . 7 Power 2 | . . 2 Propulsion 2 | . . 2 Utility . | . . . Weapon 3 | . . 3 Highest Loss Streak 5 | . . 5 To Critical Strikes . | . . . Average Backups 6 | 2 6 7 Power . | . 1 . Propulsion 1 | 1 2 2 Utility 2 | . 2 3 Weapon . | . 1 . Tool/Special . | . . . Unused Backups 4 | . . 4 Power . | . . . Propulsion 1 | . . 1 Utility 3 | . . 3 Weapon . | . . . Tool/Special . | . . . Average Slot Usage (%) 72 | . 84 41 Engine 12 | . 14 7 Wheel 22 | . 28 9 Storage 12 | . 13 11 Energy Gun 23 | . 28 11 Peak Build Rating 8 | 6 8 8 Average Rating 6 | 4 7 5 On Entrance 4 | . 6 8 Naked Turns . | . . . Heaviest Build 149 | 14 149 149 Greatest Support 20 | 20 20 20 Greatest Overweight (x) 48 | . 7 48 Average Overweight (x) 4 | . 4 9 Largest Inventory Capacity 30 | 8 30 30 Average Capacity 24 | 7 24 30 Most Carried 8 | 5 8 8 Average Carried 6 | 2 6 7 Final Capacity 30 | 8 30 30 Final Carried 7 | 4 7 5 Class Distribution -------------------- 79% | Hauler-Mutant 20% | Mutant Dominant Class ---------------- Hauler-Mutant | -10/Materials Hauler-Mutant | -9/Materials Resources | -11 -10 -9 ----------- Run | Yrd Mat Mat Matter Collected 342 | 185 95 62 Remotely . | . . . Salvage Created 97 | . . 97 Parts 7 | . . 7 Haulers Intercepted . | . . . Recyclers Shooed . | . . . Parts Field Recycled . | . . . Retrieved Matter . | . . . Parts Self-Destructed . | . . . Prevented . | . . . Kills | -11 -10 -9 ------- Run | Yrd Mat Mat Combat Hostiles Destroyed 2 | . . 2 Guns 2 | . . 2 Classes Destroyed 2 | . . 2 Grunt 1 | . . 1 Sentry 1 | . . 1 Best Kill Streak 2 | . . 2 Combat Bots Only 2 | . . 2 Max Kills in Single Turn 1 | . . 1 Gunslinging . | . . . Exploded . | . . . Melee . | . . . Uniques/NPCs Destroyed . | . . . Combat | -11 -10 -9 -------- Run | Yrd Mat Mat Hostile Shots Fired 172 | . 19 153 Missed 38 | . 5 33 Hits 134 | . 14 120 Projectile 134 | . 14 120 Damage Taken 1052 | . 149 903 Core 430 | . 23 407 Absorbed by Shields . | . . . Ignored by Resistances 328 | . 46 282 Core Remaining (%) 95 | 100 90 . Volleys Fired 14 | . . 14 Largest 1 | . . 1 Hottest 20 | . . 20 Shots Fired 14 | . . 14 Gun 14 | . . 14 Cannon . | . . . Launcher . | . . . Special . | . . . Kinetic 14 | . . 14 Thermal . | . . . Explosive . | . . . Electromagnetic . | . . . Robot Hit Streak 11 | . . 11 Robot Miss Streak 1 | . . 1 Penetration Max . | . . . Secondary Targets . | . . . Shots Hit Robots 12 | . . 12 Core Hits 4 | . . 4 Critical Kills . | . . . Critical Parts Destroyed . | . . . Critical Strikes . | . . . Melee Attacks . | . . . Impact . | . . . Slashing . | . . . Piercing . | . . . Sneak Attacks . | . . . Combat Hostiles . | . . . Follow-up Attacks . | . . . Damage Inflicted 152 | . . 152 Guns 152 | . . 152 Cannons . | . . . Explosions . | . . . Melee . | . . . Ramming . | . . . Kinetic 152 | . . 152 Thermal . | . . . Explosive . | . . . Electromagnetic . | . . . Impact . | . . . Slashing . | . . . Piercing . | . . . Highest Corruption . | . . . Average Corruption . | . . . Corruption Purged . | . . . Corruption Blocked . | . . . Overload Shots . | . . . Overflow Damage . | . . . Projectiles . | . . . Explosions . | . . . Melee . | . . . Knockbacks . | . . . Impact . | . . . Kinetic . | . . . Secondary . | . . . Self-Inflicted Damage . | . . . Shots . | . . . Rammed 1 | . . 1 Targets Rammed 1 | . . 1 Kicked . | . . . Crushed . | . . . Highest Temperature . | . . . Average Temperature . | . . . Received Heat Transfer 390 | . 108 282 Siege Activations . | . . . Martial Activations . | . . . Shielding Activations . | . . . Robots Disrupted . | . . . Combat Hostiles . | . . . Robots Corrupted . | . . . Combat Hostiles . | . . . Parts Fried . | . . . Impact Corruptions . | . . . Robots Melted . | . . . Combat Hostiles . | . . . Parts Melted . | . . . Heat Transferred . | . . . Parts Sabotaged . | . . . Parts Stolen . | . . . Parts Stripped . | . . . Power Chain Reactions . | . . . Alert | -11 -10 -9 ------- Run | Yrd Mat Mat Maximum Alert Level . | . . . Low Security (%) 100 | 100 100 100 Level 1 . | . . . Level 2 . | . . . Level 3 . | . . . Level 4 . | . . . Level 5 . | . . . High Security . | . . . Max Security . | . . . Peak Influence 30 | . . 30 Initial . | . . . Average . | . . 3 Influence Increases 65 | . . 65 Destroy 0b10 Robot/C 40 | . . 40 Destroy Leader 10 | . . 10 Lose Combat Pursuer 15 | . . 15 Influence Decreases 55 | . . 55 Time Decay 35 | . . 35 Lost Part 20 | . . 20 Squads Dispatched . | . . . Investigation . | . . . Extermination . | . . . Reinforcement . | . . . Assault . | . . . Garrison . | . . . Intercept . | . . . Searches Triggered . | . . . Construction Impeded . | . . . Haulers Reinforced . | . . . Active Scanning Responses . | . . . Cargo Convoy Interrupts . | . . . Stealth | -11 -10 -9 --------- Run | Yrd Mat Mat Distress Signals 2 | . . 2 Communications Jammed . | . . . Distress Signals . | . . . Times Spotted 19 | . 5 14 Peak Tracking Total 10 | . 3 10 Tactical Retreats 1 | . . 1 Traps | -11 -10 -9 ------- Run | Yrd Mat Mat Traps Triggered . | . . . Indirectly . | . . . Trap Hack Attempts . | . . . Triggered . | . . . Disarmed . | . . . Reprogrammed . | . . . Reused . | . . . Traps Extracted . | . . . Installed . | . . . Triggered . | . . . Machines | -11 -10 -9 ---------- Run | Yrd Mat Mat Machines Disabled . | . . . Max in Single Turn . | . . . Machines Repaired . | . . . Machines Dismantled . | . . . Machines Sabotaged . | . . . Overloaded Fab Kills . | . . . Hacking | -11 -10 -9 --------- Run | Yrd Mat Mat Machines Accessed . | . . . Terminals . | . . . Fabricators . | . . . Repair Stations . | . . . Recycling Units . | . . . Scanalyzers . | . . . Garrison Access . | . . . Total Hacks . | . . . Successful . | . . . Failed . | . . . Catastrophic . | . . . Database Lockouts . | . . . Manual . | . . . Terminals . | . . . Fabricators . | . . . Repair Stations . | . . . Recycling Units . | . . . Scanalyzers . | . . . Garrison Access . | . . . Terminal Hacks . | . . . Fabricator Hacks . | . . . Repair Station Hacks . | . . . Recycling Unit Hacks . | . . . Scanalyzer . | . . . Garrison Access Hacks . | . . . Unauthorized Hacks . | . . . Terminals . | . . . Fabricators . | . . . Repair Stations . | . . . Recycling Units . | . . . Scanalyzers . | . . . Garrison Access . | . . . Data Cores Recovered . | . . . Used . | . . . Hacking Detections . | . . . Full Trace Events . | . . . Feedback Events . | . . . Feedback Blocked . | . . . Robot Schematics Acquired . | . . . Robots Built . | . . . Authchips . | . . . Time . | . . . Total Robot Build Rating . | . . . Part Schematics Acquired . | . . . Parts Built . | . . . Authchips . | . . . Time . | . . . Total Part Build Rating . | . . . Parts Repaired . | . . . Time . | . . . Parts Recycled . | . . . Recycled Matter . | . . . Retrieved Matter . | . . . Retrieved Components . | . . . Parts Scanalyzed . | . . . Part Schematics Acquired . | . . . Parts Damaged . | . . . Bothacking | -11 -10 -9 ------------ Run | Yrd Mat Mat Used RIF Installer . | . . . Robots Hacked . | . . . Non-combat . | . . . Combat . | . . . Robot Hacks Applied . | . . . Relay Couplers Released . | . . . Fabnet Peak Effective % . | . . . Robots Rewired . | . . . Allies Hacked . | . . . Hacks Repelled . | . . . Allies | -11 -10 -9 -------- Run | Yrd Mat Mat Total Allies . | . . . Largest Group . | . . . Highest-Rated Group . | . . . Highest-Rated Ally . | . . . Total Orders . | . . . Ally Attacks . | . . . Total Damage . | . . . Kills . | . . . Allies Corrupted . | . . . Allies Melted . | . . . Intel | -11 -10 -9 ------- Run | Yrd Mat Mat Active Infowar (turns) . | . . . Robot Analysis Total . | . . . Derelict Logs Recovered . | . . . Drone Launches . | . . . Drone Recoveries . | . . . Exploration | -11 -10 -9 ------------- Run | Yrd Mat Mat Turns Passed 779 | 64 521 194 Spaces Moved 422 | 54 321 47 Core 6 | 3 . 3 Treads . | . . . Legs . | . . . Wheels 416 | 51 321 44 Hover . | . . . Flight . | . . . Fastest Speed 50 | 50 80 185 Average Speed 159 | 78 148 332 Slowest Speed 2450 | 80 185 2450 Overloaded Moves . | . . . Propulsion Burnouts . | . . . Robots Hopped . | . . . Potential Cave-ins . | . . . Cave-ins Triggered . | . . . Exploration Rate (%) 18 | 3 42 10 Regions Visited 2 Branch Regions . Pre-discovered Areas . | . . . Known Exits Taken . | . . . Unknown Exits Taken 2 | 1 1 . Scrap Searched . | . . . Spaces Dug . | . . . Terrain Destroyed . | . . . Melee . | . . . Projectile . | . . . AOE . | . . . Terrain Rammed . | . . . Walls Destroyed . | . . . Machines Disabled . | . . . Actions | -11 -10 -9 --------- Run | Yrd Mat Mat Total 509 | 72 367 70 Wait 46 | 8 34 4 Move 420 | 53 320 47 Hop . | . . . Pick Up 13 | 5 7 1 Fast Attach 7 | 5 2 . Attach 5 | 1 1 3 Detach . | . . . Swap . | . . . Drop 3 | . 3 . Fire 14 | . . 14 Melee . | . . . Ram 1 | . . 1 Kick . | . . . Crush . | . . . Escape Stasis . | . . . Rewire . | . . . Trap . | . . . Miscellaneous . | . . . Route ------- -11/Scrapyard -10/Materials (discovered 2 exits: [*Mat] / [*Min]) -9/Materials History --------- Turn | Location | Event 7 | -11/Scrapyard | Discovered new exit (range 15) 65 | -11/Scrapyard | Entered Materials 66 | -10/Materials | Met a group of wandering Federalists 143 | -10/Materials | Lost 3 allies 177 | -10/Materials | Discovered new exit (range 15) 477 | -10/Materials | Build established: Hauler-Mutant 503 | -10/Materials | Discovered new exit (range 16) 586 | -10/Materials | Entered another Materials area 586 | -9/Materials | Evolved 2 slots: Propulsion x1, Utility x1 720 | -9/Materials | Core integrity fell below 50% 722 | -9/Materials | Lost 5 parts (1p2n2w) 759 | -9/Materials | Core integrity fell below 20% 780 | -9/Materials | Destroyed by G-34 Mercenary with Small Laser Last Messages --------------- 00714_ S-10 Pest destroyed. 00719_ K-01 Serf collects debris. 00732_ R-06 Scavenger collects Lgt. Ion Engine. 00735_ R-06 Scavenger collects Flight Unit. 00737_ K-01 Serf destroyed. 00738_ R-06 Scavenger collects Flight Unit. 00742_ Y-45 Defender destroyed. 00742_ R-06 Scavenger collects Beam Rifle. 00743_ S-10 Pest destroyed. 00745_ Lgt. Ion Engine destroyed. 00745_ R-06 Scavenger collects Lgt. Ion Engine. 00750_ G-34 Mercenary destroyed. 00754_ Assault Rifle destroyed. 00756_ Acquired 52 matter. 00763_ R-06 Scavenger collects Heat Sink. 00766_ R-06 Scavenger collects Lgt. Treads. 00768_ S-10 Pest destroyed. 00771_ R-06 Scavenger collects Lgt. Armor Plating. 00775_ R-06 Scavenger collects Sml. Laser. 00780_ Acquired 10 matter. Map ----- +----------------------------------------------------+ | # #????????????????????????????????????????????? | | # #????????????????????????????????????????????? | | + #????????????????????????????????????????????? | | # #????????????????????????????????????????????? | | # #????????????????????????????????????????????? | | # #????????????????????????????????????????????? | | # #????????????????????????????????????????????? | | # #????????????????????????????????????????????? | | # #????????????????????????????????????????????? | | # #????????????????????????????????????????????? | | # #????????????????????????????????????????????? | | # ####?????????????????????????????????????????? | | # !##????#######?????????????????????????????? | | !#????# #####?????????????????????????? | | #????# ?????????????????????????? | | !#????# " ???????????"" ????????? | | # !#????# ????????????""" ????????? | | # !##????# #???????????? """ ????????? | | # ####??????# #???????????? #????????? | | # ########### #??????????? #????????? | | # ############ #????????? | | # =% [ #????????? | | # ######### =% #????????? | | ##+#############/##??# # sm +????????? | | ????????? ??# % ss "T" #????????? | | !!! ?????#= """ #g% @#####+##### #????????? | | !!! #????# """ #=!%[#??????????????????????? | | !! #???# """ # =*#??????????????????????? | | #???## # #??????????????????????? | | #????# != "# #??????????????????????? | | #????# =[ T# #??????????????????????? | | #????# ?# #??????????????????????? | | ########????# ???######??????????????????????? | | ????????????####?????????????????????????????????? | | ?????????????????????????????????????????????????? | | ?????????????????????????????????????????????????? | | ?????????????????????????????????????????????????? | | ?????????????????????????????????????????????????? | | ?????????????????????????????????????????????????? | | ?????????????????????????????????????????????????? | | ?????????????????????????????????????????????????? | | ?????????????????????????????????????????????????? | | ?????????????????????????????????????????????????? | | ?????????????????????????????????????????????????? | | ?????????????????????????????????????????????????? | | ?????????????????????????????????????????????????? | | ?????????????????????????????????????????????????? | | ?????????????????????????????????????????????????? | | ?????????????????????????????????????????????????? | | ?????????????????????????????????????????????????? | +----------------------------------------------------+ Best States ------------- Heat Dissipation 28 Energy Generation 10 Energy Capacity 250 Matter Stores 300 Matter Capacity 300 Sight Range 16 Terrain Scan Density 10 Resistance: KI 20 Resistance: TH 20 Resistance: EX 20 Resistance: EM 20 Resistance: I 20 Resistance: S 20 Resistance: P 20 Evasion (%) 44 Offensive Hacking 10 Item Schematics ----------------- None Robot Schematics ------------------ None Fabricated ------------ Nothing Repaired ---------- Nothing Alien Tech Used ----------------- None Achievements -------------- None Challenges ------------ None Game ------ Seed SystemGuidedStabilizer Manual? 0 Play Time 00:07:40 Cumulative 76.8 hours Start 2025.07.14 @ 18:41:54 End 2025.07.14 @ 18:48:26 Sessions 1 Manual Loads 0 Difficulty Adventurer Special Mode None Game No. 60 Rogue 32 Adventurer 28 Explorer 0 Win Type - Total 0 Types 0/0/0/0/0/0/0/0/0/0 Lore% 9 Gallery% 30 Achievement% 18 Wizard Run 0 Options --------- Layout 1 ASCII 0 Keyboard 0 Movement Numpad Keybinds 0 Fullscreen 1 Font 32/SmallcapsGlow Map View 77x35 Zoom Use 0% Tactical HUD 1 Map Filters NONE Filters NONE Steam 1 RUN: 57b953f3-6c6a-4cb1-987a-0b72f53e4675